Cogmind - Beta 16.1 @@@ ROGUE MODE // 2026.03.08 @ 10:59:35 Player: StaticNoob Result: Destroyed by P-80 Master with Gamma Rifle Performance ------------- Evolutions (7) 3500 Regions Visited (13) 2600 Robots Destroyed (76) 380 Value Destroyed (2685) 2685 Prototype IDs (13) 260 Alien Tech Used (0) 0 Bonus (920) 920 TOTAL SCORE: 10345 Bonus ------- High Alert Combat Kills 120 Registered with UFD 300 Met Optimus in HQ 500 Cogmind --------- Core Integrity 0/1300 Matter 7/300 Energy 90/100 System Corruption 1% Temperature Cool (0) Movement Core (150) Ox2 Location -3/Research Parts ------- > --- POWER (2) -------- (None) > --- PROPULSION (6) --- (None) > --- UTILITY (10) ----- Enhanced Optical Array Improved Signal Interpreter > --- WEAPON (3) ------- Compact HERF Cannon > --- INVENTORY (5) ---- Antigrav System Improved Matter Compressor (0) ECM Suite Tactical Quantum Warhead Peak State ------------ > --- POWER ------------ Improved Ion Engine Particle Reactor > --- PROPULSION ------- Armored Medium Treads Biometal Medium Treads Biometal Medium Treads Compact Wheel Compact Wheel Compact Wheel > --- UTILITY ---------- Advanced Heat Sink Large Storage Unit Improved Signal Interpreter Core Analyzer Advanced Recoil Stabilizer Precision Matter Filter Advanced Transmission Jammer Heavy Armor Plating Advanced Thermal Shield > --- WEAPON ----------- Compact Mass Driver Tactical Quantum Warhead Lance > --- INVENTORY -------- Light Deuterium Engine Fission Core Antigrav System Antigrav System Xenon Bombardment Thruster Advanced Heat Sink Matter Compressor Improved Matter Compressor Structural Scanner ECM Suite Compact HERF Cannon Enhanced Gauss Cannon Tactical Quantum Warhead Improved Remote Datajack [Rating: 112] Favorites ----------- Power Light Ion Engine Engine Light Ion Engine Power Core Micro Nuclear Core Reactor Particle Reactor Propulsion Light Treads Treads Light Treads Wheel Compact Wheel Hover Unit Improved Linear Gravjet Flight Unit Cesium-ion Thruster Utility Large Storage Unit Device Improved Terrain Scanner Storage Large Storage Unit Processor Improved Signal Interpreter Hackware System Shield Protection Heavy Armor Plating Weapon Light Cannon Energy Gun Medium Laser Energy Cannon Heavy Phase Cannon Ballistic Gun Subdweller Machine Gun Ballistic Cannon Light Cannon Launcher Long-range Missile Launcher Slashing Weapon Great Axe Piercing Weapon Lance Build | -11 -10 -10 -8 -6 -6 -6 -6 -6 -5 -4 -4 -4 -3 ------- Run | Yrd Mat Sub Scr Fac Was Fac Low Low Fac Fac Upp Upp Res Slots Evolved 14 | . . . . 8 . . . . 2 2 . . 2 Power 1 | . . . . . . . . . 1 . . . . Propulsion 4 | . . . . 3 . . . . 1 . . . . Utility 8 | . . . . 5 . . . . . 2 . . 1 Weapon 1 | . . . . . . . . . . . . . 1 Parts Attached 104 | 6 2 6 1 12 1 6 1 . 13 18 7 . 31 Power 14 | 1 . 1 . 3 1 . . . 1 2 1 . 4 Engine 7 | 1 . 1 . 1 . . . . . 2 . . 2 Core 5 | . . . . 2 1 . . . 1 . 1 . . Reactor 2 | . . . . . . . . . . . . . 2 Propulsion 22 | 1 1 2 1 2 . . . . 1 5 1 . 8 Treads 9 | 1 1 2 . . . . . . . . 1 . 4 Leg . | . . . . . . . . . . . . . . Wheel 4 | . . . 1 . . . . . . . . . 3 Hover 1 | . . . . . . . . . . 1 . . . Flight 8 | . . . . 2 . . . . 1 4 . . 1 Utility 50 | 2 1 . . 6 . 5 . . 9 11 4 . 12 Device 26 | 1 . . . 4 . 3 . . 4 4 3 . 7 Storage 7 | 1 1 . . 1 . . . . 1 . . . 3 Processor 12 | . . . . 1 . 2 . . 3 4 1 . 1 Hackware 4 | . . . . . . . . . 1 3 . . . Protection 1 | . . . . . . . . . . . . . 1 Artifact . | . . . . . . . . . . . . . . Weapon 18 | 2 . 3 . 1 . 1 1 . 2 . 1 . 7 Energy Gun 3 | 1 . . . . . . . . . . . . 2 Energy Cannon 3 | . . . . . . . . . 1 . 1 . 1 Ballistic Gun 3 | 1 . 2 . . . . . . . . . . . Ballistic Cannon 3 | . . 1 . . . . . . . . . . 2 Launcher 3 | . . . . . . . 1 . . . . . 2 Special Weapon . | . . . . . . . . . . . . . . Impact Weapon . | . . . . . . . . . . . . . . Slashing Weapon 2 | . . . . 1 . 1 . . . . . . . Piercing Weapon 1 | . . . . . . . . . 1 . . . . Special Melee Weapon . | . . . . . . . . . . . . . . Unidentified Prototypes 7 | . . . . 1 . . . . . 2 . . 4 Parts Lost 61 | . . 5 . 2 1 . . . 4 15 . 7 27 Power 9 | . . 1 . . 1 . . . . 2 . . 5 Propulsion 18 | . . 2 . . . . . . 1 6 . 1 8 Utility 25 | . . . . 2 . . . . 3 6 . 5 9 Weapon 9 | . . 2 . . . . . . . 1 . 1 5 Highest Loss Streak 20 | . . 5 . 2 1 . . . 2 15 . 7 20 To Critical Strikes . | . . . . . . . . . . . . . . Average Backups 8 | 1 6 9 8 8 10 10 10 11 10 4 4 4 8 Power 1 | . 1 . 1 1 1 1 1 1 . . . . 1 Propulsion 1 | . 1 1 2 . . . . . . . . . 2 Utility 4 | . 2 3 3 5 7 7 8 8 7 1 2 3 2 Weapon 1 | . 2 3 2 1 2 2 1 2 1 . . . 1 Tool/Special . | . . . . . . . . . . . . . . Unused Backups 20 | . . . 8 . . . . . 7 1 . . 4 Power 3 | . . . 2 . . . . . . 1 . . . Propulsion 3 | . . . 1 . . . . . . . . . 2 Utility 9 | . . . 3 . . . . . 5 . . . 1 Weapon 3 | . . . 2 . . . . . 1 . . . . Tool/Special 2 | . . . . . . . . . 1 . . . 1 Average Slot Usage (%) 76 | . 86 92 98 48 44 57 66 66 67 59 45 41 51 Engine 7 | . 14 10 14 3 . . . . . 3 . . 2 Core 2 | . . . . 1 5 5 5 5 10 1 3 3 . Treads 12 | . 15 24 26 . . . . . . . 3 3 6 Wheel 1 | . . . . . . . . . . . . . 6 Flight 3 | . . . . 10 11 11 11 11 10 7 . . . Device 14 | . 14 14 14 16 11 19 22 22 15 7 7 8 9 Storage 8 | . 14 14 14 5 5 5 5 5 3 . . . 3 Processor 6 | . . . . 4 5 10 16 16 16 13 13 13 8 Hackware 1 | . . . . . . . . . 4 15 5 3 . Energy Gun 1 | . 14 5 . . . . . . . . . . . Ballistic Gun 6 | . 14 13 14 . . . . . . . . . . Ballistic Cannon 5 | . . 8 14 . . . . . . . . . 5 Slashing Weapon 1 | . . . . 3 5 5 5 5 2 . . . . Piercing Weapon 1 | . . . . . . . . . 2 5 3 3 2 Peak Build Rating 112 | 8 10 14 16 73 63 77 82 77 100 71 47 47 112 Average Rating 39 | 4 8 11 14 61 62 71 77 77 77 56 37 23 57 On Entrance 38 | . 8 10 14 16 63 62 77 77 77 49 29 47 14 Avg Prop Armor Cover (%) 5 | . . . . . . 1 1 1 . . 4 . 14 Naked Turns . | . . . . . . . . . . . . . . Heaviest Build 89 | 12 27 31 31 44 34 34 33 33 38 26 27 3 89 Greatest Support 97 | 20 40 40 40 38 38 38 33 33 46 30 20 3 97 Greatest Overweight (x) 3 | 2 1 . 2 1 . . . . . 1 1 . 3 Average Overweight (x) . | . . . . . . . . . . . . . . Largest Inventory Capacity 15 | 8 15 15 15 15 15 15 15 15 15 5 5 5 15 Average Capacity 13 | 7 14 15 15 14 15 15 15 15 11 5 5 5 12 Most Carried 15 | 3 10 12 14 14 11 11 11 11 15 5 5 5 14 Average Carried 9 | 1 6 10 11 7 10 10 10 11 10 4 4 4 8 Final Capacity 15 | 8 15 15 15 15 15 15 15 15 5 5 5 5 5 Final Carried 14 | 2 10 12 14 11 10 11 11 11 5 3 5 5 4 Class Distribution -------------------- 65% | Mutant 23% | Scout 6% | Scavenger-Mutant 4% | Hacker-Mutant Dominant Class ---------------- Mutant | -10/Materials Mutant | -10/Subcaves Mutant | -8/Scraptown Mutant | -6/Factory Mutant | -6/Waste Scout | -6/Factory Scout | -6/Lower Caves Scout | -6/Lower Caves Scout | -5/Factory Hacker-Mutant | -4/Factory Mutant | -4/Upper Caves Mutant | -4/Upper Caves Scavenger-Mutant | -3/Research Resources | -11 -10 -10 -8 -6 -6 -6 -6 -6 -5 -4 -4 -4 -3 ----------- Run | Yrd Mat Sub Scr Fac Was Fac Low Low Fac Fac Upp Upp Res Matter Collected 2138 | 269 34 74 266 . . . 99 . 355 119 151 . 771 Remotely . | . . . . . . . . . . . . . . Salvage Created 2314 | 146 322 71 . . . . 129 . 162 278 . . 1206 Parts 87 | 5 21 1 . . . . 4 . 9 4 . . 43 Haulers Intercepted 4 | . 1 . . . . . . . 1 1 . . 1 Recyclers Shooed 6 | 1 . . . . . . . . . . . . 5 Parts Field Recycled . | . . . . . . . . . . . . . . Retrieved Matter . | . . . . . . . . . . . . . . Parts Self-Destructed 6 | . . 6 . . . . . . . . . . . Prevented . | . . . . . . . . . . . . . . Parts Restored . | . . . . . . . . . . . . . . Kills | -11 -10 -10 -8 -6 -6 -6 -6 -6 -5 -4 -4 -4 -3 ------- Run | Yrd Mat Sub Scr Fac Was Fac Low Low Fac Fac Upp Upp Res Combat Hostiles Destroyed 42 | . 7 3 . . . . 4 . 1 4 . . 23 Melee 5 | . . . . . . . . . 1 . . . 4 Guns 9 | . 7 2 . . . . . . . . . . . Cannons 10 | . . 1 . . . . . . . 1 . . 8 AOE 18 | . . . . . . . 4 . . 3 . . 11 Classes Destroyed 15 | 2 4 1 . . . . 1 . 2 . . . 5 Worker 8 | . . . . . . . . . . . . . 8 Builder 7 | . . . . . . . . . . . . . 7 Tunneler 2 | 2 . . . . . . . . . . . . . Hauler 4 | . 1 . . . . . . . 1 1 . . 1 Recycler 6 | 1 . . . . . . . . . . . . 5 Mechanic 1 | . . . . . . . . . . . . . 1 Operator 3 | . . . . . . . . . 1 1 . . 1 Watcher 3 | . 2 . . . . . . . . . . . 1 Swarmer 13 | . 3 . . . . . . . . . . . 10 Grunt 12 | . 4 . . . . . . . . 3 . . 5 Sentry 3 | . . . . . . . . . . . . . 3 Hunter 2 | . . . . . . . . . . . . . 2 Programmer 5 | . . . . . . . . . 1 1 . . 3 Subdweller 3 | . . 3 . . . . . . . . . . . Samaritan 1 | . . . . . . . 1 . . . . . . Thug 4 | . . . . . . . 4 . . . . . . Best Kill Streak 22 | 3 3 2 . . . . 4 . 1 4 . . 22 Combat Bots Only 11 | . 3 2 . . . . 4 . 1 3 . . 11 Max Kills in Single Turn 10 | 1 1 1 . . . . 2 . 1 4 . . 10 Gunslinging . | . . . . . . . . . . . . . . Exploded 4 | . . . . . . . 2 . . 3 . . 4 Melee 1 | . . . . . . . . . 1 . . . 1 Uniques/NPCs Destroyed . | . . . . . . . . . . . . . . Combat | -11 -10 -10 -8 -6 -6 -6 -6 -6 -5 -4 -4 -4 -3 -------- Run | Yrd Mat Sub Scr Fac Was Fac Low Low Fac Fac Upp Upp Res Hostile Shots Fired 727 | . 24 32 . 82 1 22 12 . 80 113 . 34 327 Missed 277 | . 10 10 . 52 . 6 1 . 40 41 . 9 108 Hits 450 | . 14 22 . 30 1 16 11 . 40 72 . 25 219 Melee 1 | . . . . . 1 . . . . . . . . Projectile 449 | . 14 22 . 30 . 16 11 . 40 72 . 25 219 AOE 9 | . . 5 . 3 . . . . 1 . . . . Critical Strikes 9 | . . 1 . . . 1 . . . 2 . . 5 Part Disruptions 2 | . . . . . . 1 . . 1 . . . . Damage Taken 9201 | . 149 646 . 469 40 258 232 . 893 1572 . 496 4446 Core 2751 | . 21 183 . 33 . . . . 171 867 . 165 1311 Absorbed by Shields 29 | . . . . . . . . . 29 . . . . Ignored by Resistances 35 | . . . . . . . . . . . . . 35 Regen/Repaired (Parts) 95 | . . . . . . 4 . . . 91 . . . Core Remaining (%) 61 | 100 . . 18 . . . . 96 82 . . 10 . Volleys Fired 128 | 9 24 33 . . . . 6 . . 15 . 1 40 Largest 2 | 2 2 2 . . . . 1 . . 1 . 1 2 Hottest 162 | 70 70 70 . . . . 43 . . 90 . 81 162 Shots Fired 212 | 18 48 56 . . . . 6 . . 15 . 1 68 Gun 103 | 18 48 28 . . . . . . . . . . 9 Cannon 94 | . . 28 . . . . . . . 12 . 1 53 Launcher 15 | . . . . . . . 6 . . 3 . . 6 Special . | . . . . . . . . . . . . . . Kinetic 137 | 9 24 52 . . . . . . . . . . 52 Thermal 58 | 9 24 4 . . . . . . . 12 . . 9 Explosive 15 | . . . . . . . 6 . . 3 . . 6 Electromagnetic 2 | . . . . . . . . . . . . 1 1 Robot Hit Streak 24 | 7 11 24 . . . . 6 . . 11 . 12 13 Robot Miss Streak 3 | 2 3 3 . . . . . . . 2 . . 3 Penetration Max 1 | . . . . . . . . . . . . . 1 Secondary Targets . | . . . . . . . . . . . . . . Shots Hit Robots 181 | 13 29 45 . . . 4 7 . 10 15 . 2 56 Core Hits 139 | 5 18 9 . . . . 11 . 3 15 . . 78 Critical Kills . | . . . . . . . . . . . . . . Critical Parts Destroyed . | . . . . . . . . . . . . . . Critical Strikes 15 | . 2 2 . . . 1 . . 1 . . . 9 Burn 2 | . 2 . . . . . . . . . . . . Blast 9 | . . 2 . . . . . . . . . . 7 Sever 1 | . . . . . . 1 . . . . . . . Impale 3 | . . . . . . . . . 1 . . . 2 Melee Attacks 129 | . . . . 3 . 13 4 . 50 36 . 2 21 Impact . | . . . . . . . . . . . . . . Slashing 46 | . . . . 3 . 13 4 . 26 . . . . Piercing 83 | . . . . . . . . . 24 36 . 2 21 Sneak Attacks 7 | . . . . . . . 2 . 2 . . . 3 Combat Hostiles 1 | . . . . . . . . . 1 . . . . Follow-up Attacks . | . . . . . . . . . . . . . . Damage Inflicted 10400 | 126 324 594 . . . 161 1004 . 490 1450 . 57 6194 Guns 803 | 126 324 183 . . . . . . . . . . 170 Cannons 2364 | . . 411 . . . . . . . 342 . 20 1591 Explosions 5592 | . . . . . . . 840 . . 934 . . 3818 Melee 1622 | . . . . . . 161 164 . 490 174 . 37 596 Ramming 19 | . . . . . . . . . . . . . 19 Kinetic 2316 | 50 150 570 . . . . . . . . . . 1546 Thermal 786 | 76 174 24 . . . . . . . 342 . . 170 Explosive 5592 | . . . . . . . 840 . . 934 . . 3818 Electromagnetic 65 | . . . . . . . . . . . . 20 45 Impact . | . . . . . . . . . . . . . . Slashing 438 | . . . . . . 161 164 . 113 . . . . Piercing 1184 | . . . . . . . . . 377 174 . 37 596 Highest Corruption 6 | . . . . . . 3 3 3 6 4 4 4 1 Average Corruption 2 | . . . . . . 2 3 3 2 3 4 4 1 Corruption Purged . | . . . . . . . . . . . . . . Corruption Blocked . | . . . . . . . . . . . . . . Effects 40 | . . . . . . 1 16 . 8 2 10 1 2 Message Errors 8 | . . . . . . . 3 . 3 . 2 . . Matter Fused 12 | . . . . . . 1 4 . 3 . 3 . 1 Heat Flow Errors 6 | . . . . . . . 3 . 1 . 1 . 1 Energy Discharges 3 | . . . . . . . . . 1 . 2 . . Parts Rejected 1 | . . . . . . . . . . . . 1 . Data Loss (minor) 5 | . . . . . . . 4 . . . 1 . . Data Loss (major) 3 | . . . . . . . 2 . . . 1 . . Alerts 2 | . . . . . . . . . . 2 . . . Overload Shots . | . . . . . . . . . . . . . . Overflow Damage 706 | . . 10 . . . 30 43 . . 114 . . 509 Projectiles 163 | . . 10 . . . . . . . 44 . . 109 Explosions 466 | . . . . . . . 41 . . 25 . . 400 Melee 77 | . . . . . . 30 2 . . 45 . . . Knockbacks 16 | . . 6 . . . . . . . . . . 10 Impact 1 | . . . . . . . . . . . . . 1 Kinetic 12 | . . 6 . . . . . . . . . . 6 Secondary 3 | . . . . . . . . . . . . . 3 Self-Inflicted Damage 327 | . . . . . . . . . . . . . 327 Shots 6 | . . . . . . . . . . . . . 6 Rammed 10 | . . . . . . . . . . . . . 10 Targets Rammed 11 | . . . . . . . . . . . . . 11 Kicked . | . . . . . . . . . . . . . . Crushed 1 | . . . . . . . . . . . . . 1 Highest Temperature 259 | 80 107 2 . 8 . . 259 . 154 220 175 . 250 Average Temperature 64 | 35 36 2 . 8 . . 84 . 82 99 102 . 103 Received Heat Transfer 914 | . 60 60 . 54 . 30 99 . 36 87 . 84 404 Siege Activations . | . . . . . . . . . . . . . . Martial Activations . | . . . . . . . . . . . . . . Shielding Activations . | . . . . . . . . . . . . . . Robots Disrupted . | . . . . . . . . . . . . . . Combat Hostiles . | . . . . . . . . . . . . . . Robots Corrupted . | . . . . . . . . . . . . . . Combat Hostiles . | . . . . . . . . . . . . . . Parts Fried . | . . . . . . . . . . . . . . Impact Corruptions . | . . . . . . . . . . . . . . Robots Melted . | . . . . . . . . . . . . . . Combat Hostiles . | . . . . . . . . . . . . . . Parts Melted 1 | . . . . . . . . . . 1 . . . Heat Transferred 1517 | 222 666 74 . . . . . . . 296 . . 259 Parts Sabotaged . | . . . . . . . . . . . . . . Parts Stolen . | . . . . . . . . . . . . . . Parts Stripped . | . . . . . . . . . . . . . . Power Chain Reactions . | . . . . . . . . . . . . . . Alert | -11 -10 -10 -8 -6 -6 -6 -6 -6 -5 -4 -4 -4 -3 ------- Run | Yrd Mat Sub Scr Fac Was Fac Low Low Fac Fac Upp Upp Res Maximum Alert Level 2 | . . . . . . . . . . 1 . . 2 Low Security (%) 87 | 100 100 . . 100 100 100 . . 100 67 . . 68 Level 1 5 | . . . . . . . . . . 32 . . 3 Level 2 7 | . . . . . . . . . . . . . 27 Level 3 . | . . . . . . . . . . . . . . Level 4 . | . . . . . . . . . . . . . . Level 5 . | . . . . . . . . . . . . . . High Security . | . . . . . . . . . . . . . . Max Security . | . . . . . . . . . . . . . . Peak Influence 673 | 10 155 . . 17 . 65 . . 194 298 . . 673 Initial 77 | . . . . . . . . . . 77 . . . Average 116 | 1 65 . . 1 . 31 . . 112 148 . . 209 Influence Increases 2714 | 15 276 . . 17 . 109 . . 502 529 . . 1266 Destroy 0b10 Robot/C 700 | . 140 . . . . . . . 20 80 . . 460 Destroy 0b10 Robot/NC 170 | 15 15 . . . . . . . 10 10 . . 120 Destroy Leader 144 | . 36 . . . . . . . 12 22 . . 74 Successful Hack 152 | . 10 . . 17 . 12 . . 23 42 . . 48 Disable Machine 180 | . . . . . . 15 . . 75 30 . . 60 Destroy Structure 483 | . . . . . . 7 . . 62 90 . . 324 Partial Spotted 75 | . . . . . . . . . 45 30 . . . Lose Combat Pursuer 810 | . 75 . . . . 75 . . 255 225 . . 180 Influence Decreases 2063 | 15 276 . . 17 . 71 38 . 343 438 250 . 615 Entered New Map 190 | . . . . . . . 15 . . 82 93 . . Time Decay 1413 | 15 276 . . 17 . 71 23 . 303 206 157 . 345 Lost Part 460 | . . . . . . . . . 40 150 . . 270 Squads Dispatched 34 | . 1 . . 3 . 2 . . 11 7 . . 10 Investigation 13 | . 1 . . 2 . 2 . . 4 3 . . 1 Extermination 6 | . . . . . . . . . 2 2 . . 2 Reinforcement 13 | . . . . 1 . . . . 5 1 . . 6 Assault . | . . . . . . . . . . . . . . Garrison 2 | . . . . . . . . . . 1 . . 1 Intercept . | . . . . . . . . . . . . . . Searches Triggered . | . . . . . . . . . . . . . . Construction Impeded 1 | . . . . . . . . . . . . . 1 Haulers Reinforced 3 | . . . . . . . . . . . . . 3 Active Scanning Responses . | . . . . . . . . . . . . . . Cargo Convoy Interrupts . | . . . . . . . . . . . . . . Stealth | -11 -10 -10 -8 -6 -6 -6 -6 -6 -5 -4 -4 -4 -3 --------- Run | Yrd Mat Sub Scr Fac Was Fac Low Low Fac Fac Upp Upp Res Distress Signals 6 | . . . . . . . . . 4 1 . . 1 Communications Jammed 8 | . . . . . . . . . . . . . 8 Distress Signals 6 | . . . . . . . . . . . . . 6 Times Spotted 157 | . 15 5 . 10 5 8 4 . 33 27 . 4 46 Peak Tracking Total 11 | . 3 4 . 8 5 5 4 . 11 9 . 4 8 Tactical Retreats 27 | . 2 2 . . . 2 . . 9 7 . . 5 ECM-based Alert Blocks 3 | . . . . . . . . . . 3 . . . Traps | -11 -10 -10 -8 -6 -6 -6 -6 -6 -5 -4 -4 -4 -3 ------- Run | Yrd Mat Sub Scr Fac Was Fac Low Low Fac Fac Upp Upp Res Traps Triggered 6 | . 1 . . 1 . . . . 3 1 . . . Indirectly . | . . . . . . . . . . . . . . Trap Hack Attempts . | . . . . . . . . . . . . . . Triggered . | . . . . . . . . . . . . . . Disarmed . | . . . . . . . . . . . . . . Reprogrammed . | . . . . . . . . . . . . . . Reused . | . . . . . . . . . . . . . . Traps Extracted . | . . . . . . . . . . . . . . Installed . | . . . . . . . . . . . . . . Triggered . | . . . . . . . . . . . . . . Machines | -11 -10 -10 -8 -6 -6 -6 -6 -6 -5 -4 -4 -4 -3 ---------- Run | Yrd Mat Sub Scr Fac Was Fac Low Low Fac Fac Upp Upp Res Machines Disabled 12 | . . . . . . 1 . . 5 2 . . 4 Max in Single Turn 1 | . . . . . . 1 . . 1 1 . . 1 Garrison Access 1 | . . . . . . . . . . 1 . . . Machines Repaired . | . . . . . . . . . . . . . . Machines Dismantled . | . . . . . . . . . . . . . . Machines Sabotaged . | . . . . . . . . . . . . . . Overloaded Fab Kills . | . . . . . . . . . . . . . . Hacking | -11 -10 -10 -8 -6 -6 -6 -6 -6 -5 -4 -4 -4 -3 --------- Run | Yrd Mat Sub Scr Fac Was Fac Low Low Fac Fac Upp Upp Res Machines Accessed 39 | . 2 . 1 4 . 3 . . 14 9 1 . 5 Terminals 17 | . 2 . . 1 . . . . 10 2 1 . 1 Fabricators 2 | . . . . . . . . . . . . . 2 Repair Stations 4 | . . . . . . 2 . . 1 1 . . . Recycling Units 10 | . . . . 2 . 1 . . 3 3 . . 1 Scanalyzers 2 | . . . . . . . . . . 1 . . 1 Garrison Access 3 | . . . . 1 . . . . . 2 . . . Total Hacks 104 | . 7 . 4 15 . 5 . . 36 26 1 . 10 Successful 44 | . 3 . 4 7 . 3 . . 9 12 1 . 5 Failed 60 | . 4 . . 8 . 2 . . 27 14 . . 5 Catastrophic 15 | . . . . 1 . 1 . . 10 2 . . 1 Database Lockouts . | . . . . . . . . . . . . . . Manual 49 | . 7 . . 5 . 2 . . 22 8 . . 5 Terminals 46 | . 7 . . 9 . . . . 24 3 1 . 2 Fabricators 3 | . . . . . . . . . . . . . 3 Repair Stations 10 | . . . . . . 3 . . 4 3 . . . Recycling Units 27 | . . . . 5 . 2 . . 8 10 . . 2 Scanalyzers 7 | . . . . . . . . . . 4 . . 3 Garrison Access 7 | . . . . 1 . . . . . 6 . . . Terminal Hacks 11 | . 1 . 4 2 . . . . 2 1 1 . . Record 5 | . . . 4 . . . . . . . 1 . . Robot Analysis 1 | . 1 . . . . . . . . . . . . Level Access Points 2 | . . . . 1 . . . . 1 . . . . Branch Access Points 1 | . . . . . . . . . . 1 . . . Locate Traps 1 | . . . . 1 . . . . . . . . . Zone Layout 1 | . . . . . . . . . 1 . . . . Fabricator Hacks 1 | . . . . . . . . . . . . . 1 Network Status 1 | . . . . . . . . . . . . . 1 Repair Station Hacks 5 | . . . . . . 1 . . 2 2 . . . Scan Component 3 | . . . . . . 1 . . 1 1 . . . Repair 2 | . . . . . . . . . 1 1 . . . Recycling Unit Hacks 6 | . . . . 1 . . . . 2 3 . . . Retrieve Components 6 | . . . . 1 . . . . 2 3 . . . Scanalyzer 4 | . . . . . . . . . . 2 . . 2 Retrieve Study 4 | . . . . . . . . . . 2 . . 2 Garrison Access Hacks 1 | . . . . . . . . . . 1 . . . Seal Access 1 | . . . . . . . . . . 1 . . . Unauthorized Hacks 16 | . 2 . . 4 . 2 . . 3 3 . . 2 Terminals 5 | . 2 . . 2 . . . . 1 . . . . Assimilate 1 | . . . . 1 . . . . . . . . . Skim 4 | . 2 . . 1 . . . . 1 . . . . Fabricators 1 | . . . . . . . . . . . . . 1 Liberate 1 | . . . . . . . . . . . . . 1 Repair Stations 1 | . . . . . . 1 . . . . . . . Patch 1 | . . . . . . 1 . . . . . . . Recycling Units 9 | . . . . 2 . 1 . . 2 3 . . 1 Fedlink 8 | . . . . 2 . 1 . . 2 3 . . . Scraphulk 1 | . . . . . . . . . . . . . 1 Scanalyzers . | . . . . . . . . . . . . . . Garrison Access . | . . . . . . . . . . . . . . Data Cores Recovered 1 | . . . . . . . . . . . . . 1 Used . | . . . . . . . . . . . . . . Hacking Detections 29 | . 2 . . 3 . 2 . . 14 5 . . 3 Full Trace Events 2 | . . . . . . . . . 2 . . . . Feedback Events 1 | . . . . . . . . . 1 . . . . Corruption 1 | . . . . . . . . . 1 . . . . Feedback Blocked . | . . . . . . . . . . . . . . Robot Schematics Acquired . | . . . . . . . . . . . . . . Robots Built . | . . . . . . . . . . . . . . Authchips . | . . . . . . . . . . . . . . Time . | . . . . . . . . . . . . . . Total Robot Build Rating . | . . . . . . . . . . . . . . Part Schematics Acquired . | . . . . . . . . . . . . . . Parts Built . | . . . . . . . . . . . . . . Authchips . | . . . . . . . . . . . . . . Time . | . . . . . . . . . . . . . . Total Part Build Rating . | . . . . . . . . . . . . . . Part Studies Acquired 4 | . . . . . . . . . . 2 . . 2 Parts Repaired 1 | . . . . . . . . . . 1 . . . Time 98 | . . . . . . . . . 70 28 . . . Parts Recycled . | . . . . . . . . . . . . . . Recycled Matter . | . . . . . . . . . . . . . . Retrieved Matter . | . . . . . . . . . . . . . . Retrieved Components 11 | . . . . 3 . . . . 2 6 . . . Parts Scanalyzed . | . . . . . . . . . . . . . . Part Schematics Acquired . | . . . . . . . . . . . . . . Parts Damaged . | . . . . . . . . . . . . . . Bothacking | -11 -10 -10 -8 -6 -6 -6 -6 -6 -5 -4 -4 -4 -3 ------------ Run | Yrd Mat Sub Scr Fac Was Fac Low Low Fac Fac Upp Upp Res Used RIF Installer . | . . . . . . . . . . . . . . Robots Hacked . | . . . . . . . . . . . . . . Non-combat . | . . . . . . . . . . . . . . Combat . | . . . . . . . . . . . . . . Robot Hacks Applied . | . . . . . . . . . . . . . . Relay Couplers Released . | . . . . . . . . . . . . . . Fabnet Peak Effective % . | . . . . . . . . . . . . . . Robots Rewired . | . . . . . . . . . . . . . . Allies Hacked . | . . . . . . . . . . . . . . Hacks Repelled . | . . . . . . . . . . . . . . Allies | -11 -10 -10 -8 -6 -6 -6 -6 -6 -5 -4 -4 -4 -3 -------- Run | Yrd Mat Sub Scr Fac Was Fac Low Low Fac Fac Upp Upp Res Total Allies 1 | . . . . 1 . . . . . . . . . Largest Group 1 | . . . . 1 . . . . . . . . . Highest-Rated Group 10 | . . . . 10 . . . . . . . . . Highest-Rated Ally 10 | . . . . 10 . . . . . . . . . Initial UFD Resources 78 | . . . . 24 38 38 40 40 42 60 76 76 78 Total Orders 2 | . . . . . . . . . . 1 1 . . EXPLORE 2 | . . . . . . . . . . 1 1 . . Ally Attacks . | . . . . . . . . . . . . . . Total Damage . | . . . . . . . . . . . . . . Kills . | . . . . . . . . . . . . . . Allies Corrupted . | . . . . . . . . . . . . . . Allies Melted . | . . . . . . . . . . . . . . Intel | -11 -10 -10 -8 -6 -6 -6 -6 -6 -5 -4 -4 -4 -3 ------- Run | Yrd Mat Sub Scr Fac Was Fac Low Low Fac Fac Upp Upp Res Active Infowar (turns) 6884 | 12 801 361 2733 182 56 192 1141 5 683 254 . . 464 Optics 1764 | . . . . . . 58 1141 5 429 3 . . 128 Sensors 1991 | . . . . 38 . 136 1141 5 671 . . . . Terrain 5670 | 12 801 361 2733 165 . 2 1095 5 496 . . . . Structural 233 | . . . . 161 . . . . . . . . 72 Machine Analysis 2002 | . . . . 179 56 192 1141 5 429 . . . . Triangulation 248 | . . . . . . . . . . 248 . . . Jamming 266 | . . . . . . . . . 2 . . . 264 ECM 3 | . . . . . . . . . . 3 . . . Robot Analysis Total 1 | . 1 . . . . . . . . . . . . Derelict Logs Recovered 3 | . . . 2 . . . . . . . 1 . . Drone Launches 3 | . . . . . . . . . . 2 1 . . Drone Recoveries 3 | . . . . . . . . . . 2 1 . . Exploration | -11 -10 -10 -8 -6 -6 -6 -6 -6 -5 -4 -4 -4 -3 ------------- Run | Yrd Mat Sub Scr Fac Was Fac Low Low Fac Fac Upp Upp Res Turns Passed 8011 | 114 801 361 2733 182 56 192 1141 5 687 429 344 17 949 Spaces Moved 5966 | 53 321 167 1692 250 113 272 376 11 1217 618 313 17 546 Core 221 | 11 . . . . . . . . . 78 . 17 115 Treads 2434 | 42 321 167 1581 . . . . . . . 134 . 189 Legs . | . . . . . . . . . . . . . . Wheels 340 | . . . 111 . . . . . . . . . 229 Hover 216 | . . . . . . . . . . 37 179 . . Flight 2755 | . . . . 250 113 272 376 11 1217 503 . . 13 Fastest Speed 34 | 50 160 160 120 34 34 34 40 40 34 34 40 50 40 Average Speed 96 | 148 224 160 157 40 34 36 40 40 34 36 103 50 121 Slowest Speed 240 | 160 240 160 160 94 34 40 40 40 37 120 240 50 225 Overloaded Moves . | . . . . . . . . . . . . . . Propulsion Burnouts . | . . . . . . . . . . . . . . Robots Hopped 9 | . . . . . . . . . 7 2 . . . Potential Cave-ins 2 | . . . . . . . . . 2 . . . . Cave-ins Triggered . | . . . . . . . . . . . . . . Exploration Rate (%) 33 | 4 52 18 89 10 73 10 51 5 44 24 60 6 22 Regions Visited 13 Branch Regions 6 Pre-discovered Areas 1 | . . . . 1 . . . . . . . . . Known Exits Taken 7 | . . . . . . 1 1 1 1 1 1 1 . Unknown Exits Taken 4 | 1 1 1 1 . . . . . . . . . . Scrap Searched 11 | . . . 7 . . . 1 . . . 3 . . Spaces Dug 72 | . . . . . . 7 2 . 32 27 . . 4 Terrain Destroyed 356 | . . . . . . 7 54 . 32 45 . . 218 Melee 70 | . . . . . . 7 2 . 32 25 . . 4 Projectile 14 | . . . . . . . . . . 3 . . 11 AOE 272 | . . . . . . . 52 . . 17 . . 203 Terrain Rammed . | . . . . . . . . . . . . . . Walls Destroyed . | . . . . . . . . . . . . . . Machines Disabled . | . . . . . . . . . . . . . . Actions | -11 -10 -10 -8 -6 -6 -6 -6 -6 -5 -4 -4 -4 -3 --------- Run | Yrd Mat Sub Scr Fac Was Fac Low Low Fac Fac Upp Upp Res Total 7756 | 70 359 209 1767 323 129 338 1352 10 1393 744 332 21 709 Wait 1293 | . 4 . 53 43 16 46 965 . 80 43 10 . 33 Move 5937 | 52 320 166 1691 250 112 271 375 10 1203 613 312 16 546 Hop 8 | . . . . . . . . . 6 2 . . . Pick Up 55 | 3 8 4 11 5 . . . . 9 2 1 . 12 Fast Attach 79 | 5 1 . 1 6 . 6 . . 10 19 7 . 24 Attach 28 | 1 . 5 . 4 1 . 1 . 3 2 . 1 10 Detach 11 | . . . . 2 . 1 1 . 2 1 1 1 2 Swap 9 | . 1 1 . 3 . . . . 1 . . . 3 Drop 49 | . 1 . 11 7 . 1 . . 10 11 1 . 7 Fire 128 | 9 24 33 . . . . 6 . . 15 . 1 40 Melee 129 | . . . . 3 . 13 4 . 50 36 . 2 21 Ram . | . . . . . . . . . . . . . . Kick . | . . . . . . . . . . . . . . Crush 11 | . . . . . . . . . . . . . 11 Escape Stasis 19 | . . . . . . . . . 19 . . . . Rewire . | . . . . . . . . . . . . . . Trap . | . . . . . . . . . . . . . . Miscellaneous . | . . . . . . . . . . . . . . Route ------- -11/Scrapyard -10/Materials (discovered 3 exits: [*Mat] / [*Min] / [*Sub]) -10/Subcaves -8/Scraptown (discovered 2 exits: *Fac x2) -6/Factory (discovered 4 exits: Fac x4) -6/Waste -6/Factory -6/Lower Caves -6/Lower Caves -5/Factory (discovered 7 exits: *Fac x4 / *Upp x2 / Ext) -4/Factory (discovered 2 exits: *Upp x2) -4/Upper Caves -4/Upper Caves -3/Research History --------- Turn | Location | Event 2 | -11/Scrapyard | Met Revision 17 13 | -11/Scrapyard | Discovered new exit (range 16) 115 | -11/Scrapyard | Entered Materials 169 | -10/Materials | Discovered new exit (range 16) 306 | -10/Materials | Build established: Mutant 714 | -10/Materials | Discovered new exit (range 16) 908 | -10/Materials | Discovered new exit (range 7) 916 | -10/Materials | Entered Subcaves 917 | -10/Subcaves | Approached by a straggling Scientist 1036 | -10/Subcaves | A Subdweller sparked back to life 1036 | -10/Subcaves | A Subdweller sparked back to life 1036 | -10/Subcaves | A Subdweller sparked back to life 1071 | -10/Subcaves | Core integrity fell below 50% 1079 | -10/Subcaves | Core integrity fell below 20% 1122 | -10/Subcaves | Lost 5 parts (1p2n2w) 1125 | -10/Subcaves | Found Prototype Flight Unit 1277 | -10/Subcaves | Entered Scraptown 1357 | -8/Scraptown | Heard Great Nut preacher, LISTEN AND RECITE! 1434 | -8/Scraptown | Visited CR-KLE's Repair Center 1461 | -8/Scraptown | Visited Spacefarers 1497 | -8/Scraptown | Visited Red Mages 1573 | -8/Scraptown | Visited Bundlers 1645 | -8/Scraptown | Visited IN-MT5's Study 1669 | -8/Scraptown | Visited UFD Registry 1669 | -8/Scraptown | Registered with UFD as "Guntalker" 2052 | -8/Scraptown | Scanned Subdweller tech in exchange for log data 2057 | -8/Scraptown | Learned Factory trap positions 2074 | -8/Scraptown | Discovered new exit (range 13) 2324 | -8/Scraptown | Visited Junk Repository 2373 | -8/Scraptown | Visited LU-1G1's Boring Crew 2399 | -8/Scraptown | Visited Abandonware Association 2417 | -8/Scraptown | Learned abandonware demo "REVENGE.EXE" 2417 | -8/Scraptown | Learned abandonware demo "MELTYB.EXE" 2452 | -8/Scraptown | Visited Science Testing Area 2473 | -8/Scraptown | Visited Infowarlord's Domain 2493 | -8/Scraptown | Visited Research Penetration Think Tank 2543 | -8/Scraptown | Visited Curators Association 2692 | -8/Scraptown | Visited Science Guys 2724 | -8/Scraptown | Visited Chapter 10 2746 | -8/Scraptown | Visited Scrapoid Research Area 3744 | -8/Scraptown | Found Exp. Sensor Array 3948 | -8/Scraptown | Met Optimus 3948 | -8/Scraptown | Accepted into 0bPrime 4007 | -8/Scraptown | Discovered new exit (range 3) 4010 | -8/Scraptown | Entered Factory 4010 | -6/Factory | Evolved 8 slots: Propulsion x3, Utility x5 4011 | -6/Factory | Loaded intel: 83 trap records 4011 | -6/Factory | Identified Flightbrick 4012 | -6/Factory | Attached Flightbrick, gained temporary slots: Utility x3 4080 | -6/Factory | Identified exit to Factory 4084 | -6/Factory | Loaded intel: 8 recycling unit locations 4109 | -6/Factory | Spotted B-75 Beast 4171 | -6/Factory | Learned location of Protoforge (-2) 4192 | -6/Factory | Manually triggered Chute Trap 4192 | -6/Factory | Sucked down chute 4192 | -6/Factory | Entered Waste 4197 | -6/Waste | Spotted C-40 Crusher 4202 | -6/Waste | Spotted C-40 Crusher 4222 | -6/Waste | Spotted C-40 Crusher 4225 | -6/Waste | Spotted C-40 Crusher 4225 | -6/Waste | Crushed by Compactor (1 part destroyed) 4230 | -6/Waste | Discovered new exit (range 16) 4231 | -6/Waste | Spotted C-40 Crusher 4231 | -6/Waste | Spotted C-40 Crusher 4248 | -6/Waste | Entered Factory 4357 | -6/Factory | Loaded intel: 8 recycling unit locations 4419 | -6/Factory | Discovered new exit (range 19) 4439 | -6/Factory | Identified exit to Lower Caves 4440 | -6/Factory | Entered Lower Caves 4650 | -6/Lower Caves | Build established: Scout 4792 | -6/Lower Caves | Ambushed by wild Derelicts 5463 | -6/Lower Caves | Discovered new exit (range 21) 5581 | -6/Lower Caves | Identified exit to Lower Caves 5581 | -6/Lower Caves | Entered another Lower Caves area 5583 | -6/Lower Caves | Discovered exit to Factory (range 7) 5586 | -6/Lower Caves | Entered Factory 5586 | -5/Factory | Evolved 2 slots: Power x1, Propulsion x1 5587 | -5/Factory | Identified exit to Extension 5659 | -5/Factory | Discovered new exit (range 9) 5742 | -5/Factory | Discovered new exit (range 16) 5916 | -5/Factory | Discovered new exit (range 9) 5925 | -5/Factory | Identified exit to Upper Caves 6023 | -5/Factory | Loaded intel: 8 recycling unit locations 6263 | -5/Factory | Identified exit to Factory 6273 | -5/Factory | Entered another Factory area 6273 | -4/Factory | Evolved 2 slots: Utility x2 6346 | -4/Factory | Found Prototype Hackware 6346 | -4/Factory | Identified Exp. Hacking Suite 6379 | -4/Factory | Loaded intel: 8 recycling unit locations 6457 | -4/Factory | Discovered new exit (range 4) 6458 | -4/Factory | Identified exit to Upper Caves 6494 | -4/Factory | Repaired Nuclear Pulse Array 6609 | -4/Factory | Spotted B-86 Titan 6624 | -4/Factory | Build established: Hacker-Mutant 6627 | -4/Factory | Garrison activated, responded to threat 6640 | -4/Factory | Core integrity fell below 50% 6676 | -4/Factory | Lost 15 parts (2p6n6u1w) 6702 | -4/Factory | Entered Upper Caves 6722 | -4/Upper Caves | Learned Research garrison access intel 6810 | -4/Upper Caves | Discovered new exit (range 25) 6852 | -4/Upper Caves | Identified exit to Upper Caves 6928 | -4/Upper Caves | Build established: Mutant 7046 | -4/Upper Caves | Entered another Upper Caves area 7056 | -4/Upper Caves | Core integrity fell below 20% 7061 | -4/Upper Caves | Discovered new exit (range 5) 7063 | -4/Upper Caves | Identified exit to Research 7063 | -4/Upper Caves | Entered Research 7063 | -3/Research | Evolved 2 slots: Utility x1, Weapon x1 7064 | -3/Research | Loaded intel: 4 garrison access locations 7085 | -3/Research | Lost 7 parts (1n5u1w) 7458 | -3/Research | Found Prototype Launcher 7458 | -3/Research | Identified Tactical Quantum Warhead 7461 | -3/Research | Found Tactical Quantum Warhead 7463 | -3/Research | Found Tactical Quantum Warhead 7578 | -3/Research | Build established: Scavenger-Mutant 7720 | -3/Research | Garrison activated, responded to threat 7744 | -3/Research | Destroyed 11 combat bots 7755 | -3/Research | Lost 4 parts (4u) 7779 | -3/Research | Core integrity fell below 50% 7814 | -3/Research | Destroyed 7 combat bots 7833 | -3/Research | Lost 20 parts (4p7n5u4w) 7895 | -3/Research | Core integrity fell below 20% 8012 | -3/Research | Destroyed by P-80 Master with Gamma Rifle Last Messages --------------- 07983_ Slug penetrates Wall. 07984_ Adv. Medium Treads destroyed. 07985_ K-01 Serf cleans the Terminal. 07985_ Dropped Wave Gun. 07986_ Penetrated by Slug. 07988_ K-01 Serf cleans the Terminal. 07989_ Slug penetrates H-77 Assassin. 07989_ Slug penetrates Wall. 07989_ Slug penetrates H-77 Assassin. 07990_ H-77 Assassin heat damages Hpw. Shotgun. 07993_ Connecting with Recycling Unit... >>Force(Scraphulk) 0bP!AGENT 0bP!ALLOCATE<78-5=73> 0bP!ETA<30> 0bP!WE_ARE_ONE 07993_ ALERT: Suspicious activity at Recycling Unit R001. Dispatching Investigation squad. 08010_ Slug penetrates Recycling Unit. 08010_ Penetrated by Slug. Map ----- +----------------------------------------------------+ | ###### #????#"""" # ?? | | ?????# #????#"""" + ^ ? | | ?????# #????#"""" ! # ? | | ?????# #????# # ^ ? | | ?????# #????# # ##################????? | | ?????# #????# # #?????????????????????? | | ?????# #????# # #?????????????????????? | | ?????# #????# # #?????????????????????? | | ?????# #????############## #?########????????????? | | ?????# #???????????????### ### #????????????? | | ?????? ????????????????# # #????????????? | | ?????? ????????????????# T # #????????????? | | ?????? ????????????????# "" + [[[#????????????? | | ?????? ??????????#+##### [[# [#????????????? | | ?????? # [[ #????????????? | | ?????? ??????#####+###### #########????????????? | | ?????? ?????????????????# # #????????????? | | ?????? ?????????????????+ + ] #????????????? | | ?????? ?????????????????# # !#????????????? | | ?????? ?????????????????# #########????????????? | | ?????????????????????#####+#####?????????????????? | | ?????????????????????# h #?????????????????? | | ??????????????????#### h p #?????????????????? | | ??????????????????? /hh""" #?????????????????? | | ?????????????????????# "Y" !#?????????????????? | | ?????????????????????# "@" #?????????????????? | | ?????????????????????# p #?????????????????? | | ?????????????????????# #?????????????????? | | ?????????????????????# #?????????????????? | | ?????????????????????###########?????????????????? | | | | | | | | | | | | | | | | | | | | | | | | | | | | | | | | | | | | | | | | | +----------------------------------------------------+ Best States ------------- Heat Dissipation 84 Energy Generation 30 Energy Capacity 505 Matter Stores 300 Matter Capacity 300 Sight Range 22 Robot Scan Range 20 Terrain Scan Range 20 Terrain Scan Density 10 Jamming Range 16 Additional Mass Support 9 Armor Coverage 600 Resistance: TH 30 Evasion (%) 63 Targeting Accuracy 6 Core Analysis 9 Recoil Reduction 9 Matter Filtering 50 Force Boost 20 Salvage Targeting 3 Offensive Hacking 26 Defensive Hacking 20 Item Schematics ----------------- None Robot Schematics ------------------ None Fabricated ------------ Nothing Repaired ---------- Nuclear Pulse Array | 17% | -4/Factory Studied --------- Cesium-ion Thruster | -4/Factory | Hacked Nuclear Pulse Array | -4/Factory | Hacked Lance | -3/Research | Hacked Arm. Medium Treads | -3/Research | Hacked Alien Tech Used ----------------- None Achievements -------------- None Challenges ------------ None Game ------ Seed GlidesysOvertunedExoskeleton Manual? 0 Play Time 01:10:44 Cumulative 290.0 hours Start 2026.03.08 @ 09:47:07 End 2026.03.08 @ 10:59:35 Sessions 1 Manual Loads 0 Difficulty Rogue Special Mode None Game No. 223 Rogue 223 Adventurer 0 Explorer 0 Win Type - Total 12 Types 8/0/3/1/0/0/0/0/0/0 Lore% 86 Gallery% 72 Achievement% 59 Wizard Run 0 Options --------- Layout 1 ASCII 0 Keyboard 0 Movement Numpad Keybinds 0 Fullscreen 1 Font 24/Smallcaps Map View 50x35 Zoom Use 0% Tactical HUD 1 Map Filters NONE Filters NONE Steam 1 RUN: 4e52a946-e681-4d51-bb06-a6a8b4edfa78